fUST/lending_fUST_20260206
["ID","MTS","AMOUNT","RATE_DAILY","PERIOD"]
[404623345,1770341984594,299.53,0.00013699,2]
[404623346,1770342004131,150.14951516,0.00013673,2]
[404623347,1770342063893,388.75947496,0.00013699,2]
[404623348,1770342089913,169.3764696,0.00030137,120]
[404623354,1770342149963,300.0,0.0001505,2]
[404623362,1770342303499,501.22133182,0.00013273,2]
[404623363,1770342303743,500.43763867,0.00013699,2]
[404623364,1770342304309,501.29176876,0.00013273,2]
[404623462,1770342631604,-674.76220887,0.00016164,2]
[404623463,1770342631619,-4325.23779113,0.00016164,2]
[404623464,1770342631629,-220.83031633,0.00016328,2]
[404623465,1770342631639,-816.7594954,0.00016492,2]
[404623466,1770342631649,-7705.0827718,0.00016878,2]
[404623467,1770342631668,-440.41335325,0.00016878,2]
[404623468,1770342631679,-646.19643046,0.00016878,2]
[404623505,1770342637678,-10716.78198593,0.00016878,2]
[404623579,1770342639838,-2556.82197161,0.00016878,2]
[404623588,1770342645466,-11474.15435475,0.00016878,2]
[404623589,1770342645476,-704.0165102,0.00017652,2]
[404623590,1770342645486,-17153.5671729,0.00017682,2]
[404623591,1770342645496,-152.0,0.00017682,2]
[404623592,1770342645506,-152.0,0.00017682,2]
[404623593,1770342645516,-153.0,0.00017682,2]
[404623594,1770342645526,-153.0,0.00017682,2]
[404623595,1770342645535,-171.02008649,0.00017682,2]
[404623596,1770342645545,-153.0,0.00017682,2]
[404623597,1770342645555,-166.0,0.00017682,2]
[404623598,1770342645564,-166.0,0.00017682,2]
[404623600,1770342645573,-166.0,0.00017682,2]
[404623601,1770342645583,-166.0,0.00017682,2]
[404623603,1770342645592,-166.0,0.00017682,2]
[404623605,1770342645602,-152.55690005,0.00017808,2]
[404623606,1770342645611,-2984.49882048,0.00017861,2]
[404623607,1770342645621,-502.90277014,0.00018,2]
[404623608,1770342645632,-7190.42450989,0.00018032,2]
[404623609,1770342645641,-349.0,0.00018032,2]
[404623610,1770342645651,-151.0,0.00018032,2]
[404623611,1770342645660,-152.0,0.00018032,2]
[404623612,1770342645669,-151.0,0.00018032,2]
[404623613,1770342645678,-164.0,0.00018032,2]
[404623614,1770342645688,-271.71060174,0.00018032,2]
[404623615,1770342645701,-166.0,0.00018032,2]
[404623616,1770342645710,-166.0,0.00018032,2]
[404623617,1770342645719,-166.0,0.00018032,2]
[404623618,1770342645729,-172.0,0.00018032,2]
[404623619,1770342645739,-167.0,0.00018032,2]
[404623620,1770342645748,-167.0,0.00018032,2]
[404623621,1770342645758,-167.0,0.00018032,2]
[404623622,1770342645767,-167.0,0.00018032,2]
[404623623,1770342645777,-166.5643055,0.00018032,2]
[404623624,1770342645786,-396.91702657,0.00018039,2]
[404623625,1770342645796,-549.007,0.00018039,2]
[404623626,1770342645805,-4791.482288,0.00018271,2]
[404623627,1770342645816,-260.57977327,0.00018328,2]
[404623628,1770342645825,-300.0,0.00018392,2]
[404623629,1770342645834,-300.0,0.00018392,2]
[404623630,1770342645844,-300.0,0.00018392,2]
[404623631,1770342645854,-300.0,0.00018392,2]
[404623632,1770342645864,-300.0,0.00018392,2]
[404623633,1770342645874,-300.0,0.00018392,2]
[404623634,1770342645883,-300.0,0.00018392,2]
[404623635,1770342645893,-300.0,0.00018392,2]
[404623636,1770342645903,-300.0,0.00018392,2]
[404623637,1770342645912,-300.0,0.00018392,2]
[404623638,1770342645921,-300.0,0.00018392,2]
[404623639,1770342645930,-300.0,0.00018392,2]
[404623640,1770342645940,-300.0,0.00018392,2]
[404623641,1770342645953,-300.0,0.00018392,2]
[404623642,1770342645963,-300.0,0.00018392,2]
[404623643,1770342645972,-600.0,0.00018759,2]
[404623644,1770342645982,-303.10001603,0.000189,2]
[404623645,1770342645991,-155.20622957,0.00018933,2]
[404623646,1770342646004,-4791.482288,0.0001904,2]
[404623647,1770342646015,-909.42132466,0.00019726,2]
[404623648,1770342646024,-3314.698238,0.00019809,2]
[404623649,1770342646036,-388.93595694,0.00019809,2]
[404623650,1770342646050,-1087.84809306,0.00019809,2]
[404623651,1770342646059,-5306.12207445,0.0002,20]
[404623652,1770342646072,-840.20940277,0.0002,20]
[404623653,1770342646083,-1411.38527166,0.0002,20]
[404623657,1770342664139,500.57058028,0.00013699,2]
[404623658,1770342664168,244.0115038,0.00013699,2]
[404623659,1770342664200,575.6036208,0.00013699,2]
[404623661,1770342666788,500.59175031,0.00013699,2]
[404623662,1770342667149,438.38361087,0.00013699,2]
[404623664,1770342723560,502.90148584,0.00013699,2]
[404623665,1770342723678,501.36956945,0.00013699,2]
[404623676,1770342905803,229.98065941,0.00013699,2]
[404623677,1770342906177,500.0,0.00013699,2]
[404623678,1770342907433,500.62626824,0.00013699,2]
[404623679,1770342967135,288.54159064,0.00013699,2]
[404623680,1770343011892,162.68954431,0.00030136,120]
[404623681,1770343023691,605.95021461,0.00013273,2]
[404623682,1770343023716,635.5747756,0.00013699,2]
[404623683,1770343023840,500.0,0.00013699,2]
[404623684,1770343023900,1000.0,0.00014247,2]
[404623691,1770343204871,501.29395329,0.00013699,2]
[404623693,1770343264929,501.41901293,0.00013699,2]
[404623694,1770343266308,501.64477805,0.00013699,2]
[404623695,1770343266466,285.22970582,0.00013699,2]
[404623748,1770343684792,151.55,9.99e-05,2]
[404623749,1770343685080,151.54,9.99e-05,2]
[404623793,1770343808668,-5000.0,0.00015816,2]
[404623794,1770343808691,-216.06906616,0.00016137,2]
[404623795,1770343808713,-1200.0,0.00016144,2]
[404623796,1770343808735,-83.93093384,0.00016145,2]
[404623904,1770343832223,-5000.0,0.00015984,2]
[404623905,1770343832233,-216.06906616,0.00016145,2]
[404623906,1770343832242,-300.0,0.00016145,2]
[404623907,1770343832251,-300.0,0.00016145,2]
[404623908,1770343832260,-300.0,0.00016145,2]
[404623909,1770343832269,-9748.58860537,0.00016146,2]
[404623910,1770343832280,-7067.04163541,0.00016146,2]
[404623911,1770343832290,-180.76,0.000163,2]
[404623912,1770343832299,-610.694326,0.00016757,2]
[404623913,1770343832308,-300.0,0.00017213,2]
[404623914,1770343832317,-300.0,0.00017213,2]
[404623915,1770343832327,-300.0,0.00017213,2]
[404623916,1770343832336,-300.0,0.00017213,2]
[404623917,1770343832345,-300.0,0.00017213,2]
[404623918,1770343832355,-300.0,0.00017213,2]
[404623919,1770343832364,-300.0,0.00017213,2]
[404623920,1770343832374,-300.0,0.00017213,2]
[404623921,1770343832389,-300.0,0.00017213,2]
[404623922,1770343832399,-300.0,0.00017213,2]
[404623923,1770343832408,-300.0,0.00017213,2]
[404623924,1770343832418,-300.0,0.00017213,2]
[404623925,1770343832429,-300.0,0.00017213,2]
[404623926,1770343832438,-300.0,0.00017213,2]
[404623927,1770343832447,-300.0,0.00017213,2]
[404623928,1770343832457,-187.14273922,0.00017456,2]
[404623929,1770343832466,-1000.0,0.00017463,2]
[404623930,1770343832475,-600.0,0.00017556,2]
[404623931,1770343832485,-500.0,0.00018,2]
[404623932,1770343832495,-164.22603324,0.00018012,2]
[404623933,1770343832504,-254.96149806,0.00018137,2]
[404623934,1770343832513,-439.205,0.00018219,2]
[404623935,1770343832523,-800.0,0.00018706,2]
[404623936,1770343832532,-800.0,0.00018772,2]
[404623937,1770343832542,-525.526963,0.00018789,2]
[404623938,1770343832551,-717.8514873,0.00018789,2]
[404623939,1770343832560,-177.1508897,0.00018789,2]
[404623940,1770343832570,-3396.3655598,0.00018789,2]
[404623973,1770343837981,-617.46933,0.00015824,2]
[404623975,1770343837990,-692.37622234,0.00018789,2]
[404624059,1770343839924,-7143.24649042,0.00018789,2]
[404624072,1770343844293,-967.9999982,0.00018789,2]
[404624073,1770343844305,-385.0,0.00018789,2]
[404624096,1770343846056,-1767.53759524,0.00018789,2]
[404624181,1770343996351,328817.55314085,0.000135,2]
[404624233,1770344336058,507.73686421,0.000301,120]
[404624264,1770344862777,500.0,0.0002999,120]
[404624265,1770344863545,500.0,0.0002999,120]
[404624266,1770344864303,500.0,0.0002999,120]
[404624267,1770344865070,500.0,0.0002999,120]
[404624268,1770344866228,500.0,0.0002999,120]
[404624269,1770344867037,500.0,0.0002999,120]
[404624270,1770344867829,500.0,0.0002999,120]
[404624271,1770344868620,349.35,0.0002999,120]
[404624272,1770344871829,437.07308554,0.00012,5]
[404624275,1770344908151,151.19481624,0.0003,120]
[404624295,1770345013702,-198.70654917,0.00015511,2]
[404624350,1770345031967,-4801.29345083,0.00015511,2]
[404624352,1770345031977,-153.05071495,0.00015668,2]
[404624355,1770345031987,-2645.65583422,0.0001641,2]
[404624365,1770345038042,-2793.00815302,0.0001641,2]
[404624369,1770345040211,-643.24649042,0.0001641,2]
[404624370,1770345040221,-400.0,0.0001641,2]
[404624380,1770345044375,-5000.05013402,0.0001641,2]
[404624384,1770345044430,-4980.70430967,0.0001641,2]
[404624385,1770345044442,-118.46575265,0.0001641,2]
[404624386,1770345044451,-238.85640737,0.0001641,2]
[404624387,1770345044461,-309.45412369,0.00016493,2]
[404624388,1770345044470,-245.36048835,0.00016493,2]
[404624389,1770345044480,-441.64887903,0.00016493,2]
[404624390,1770345044490,-784.36840916,0.00016493,2]
[404624391,1770345044500,-326.01713768,0.00016493,2]
[404624392,1770345044509,-325.69221325,0.00016493,2]
[404624393,1770345044519,-372.21967229,0.00016493,2]
[404624394,1770345044529,-543.31674612,0.00016493,2]
[404624395,1770345044538,-977.97014301,0.00016493,2]
[404624396,1770345044548,-1738.61358758,0.00016493,2]
[404624397,1770345044558,-2716.5837306,0.00016493,2]
[404624398,1770345044567,-174.76242913,0.00016666,2]
[404624399,1770345044576,-314.57237243,0.00016666,2]
[404624400,1770345044586,-367.1054836,0.00016666,2]
[404624401,1770345044596,-419.54912411,0.00016666,2]
[404624402,1770345044605,-328.10069349,0.00016741,2]
[404624403,1770345044615,-562.49263128,0.00016741,2]
[404624404,1770345044624,-2247.72055458,0.00016741,2]
[404624405,1770345044634,-300.0,0.00016822,2]
[404624406,1770345044643,-300.0,0.00016822,2]
[404624407,1770345044653,-300.0,0.00016822,2]
[404624408,1770345044662,-300.0,0.00016822,2]
[404624409,1770345044671,-300.0,0.00016822,2]
[404624410,1770345044681,-300.0,0.00016822,2]
[404624411,1770345044690,-300.0,0.00016822,2]
[404624412,1770345044700,-300.0,0.00016822,2]
[404624413,1770345044709,-300.0,0.00016822,2]
[404624414,1770345044719,-300.0,0.00016822,2]
[404624415,1770345044728,-300.0,0.00016822,2]
[404624416,1770345044737,-300.0,0.00016822,2]
[404624417,1770345044747,-300.0,0.00016822,2]
[404624418,1770345044757,-300.0,0.00016822,2]
[404624419,1770345044767,-300.0,0.00016822,2]
[404624420,1770345044780,-369.82021322,0.00016917,2]
[404624421,1770345044790,-159.36596609,0.0001713,2]
[404624422,1770345044799,-286.85873896,0.0001713,2]
[404624423,1770345044810,-509.97109149,0.0001713,2]
[404624424,1770345044819,-600.0,0.00017157,2]
[404624425,1770345044829,-500.0,0.00017442,2]
[404624426,1770345044839,-620.98694764,0.00017442,2]
[404624427,1770345044852,-500.0,0.00017442,2]
[404624428,1770345044863,-500.0,0.00017442,2]
[404624429,1770345044872,-513.59477483,0.00017442,2]
[404624430,1770345044882,-500.0,0.00017442,2]
[404624431,1770345044891,-500.0,0.00017442,2]
[404624432,1770345044901,-500.0,0.00017442,2]
[404624433,1770345044911,-95.13163757,0.00017442,2]
[404624434,1770345044923,-404.86836243,0.00017442,2]
[404624435,1770345044933,-500.0,0.00017442,2]
[404624436,1770345044942,-556.24980603,0.00017442,2]
[404624437,1770345044952,-500.0,0.00017442,2]
[404624438,1770345044961,-295.0,0.00017442,2]
[404624439,1770345044971,-500.0,0.00017442,2]
[404624440,1770345044980,-500.0,0.00017442,2]
[404624442,1770345044990,-500.0,0.00017442,2]
[404624443,1770345045000,-500.0,0.00017442,2]
[404624444,1770345045011,-500.0,0.00017442,2]
[404624445,1770345045020,-500.0,0.00017442,2]
[404624446,1770345045029,-500.0,0.00017442,2]
[404624447,1770345045039,-500.0,0.00017442,2]
[404624448,1770345045048,-500.0,0.00017442,2]
[404624449,1770345045058,-500.0,0.00017442,2]
[404624450,1770345045067,-313.19780314,0.00017442,2]
[404624451,1770345045077,-500.0,0.00017442,2]
[404624452,1770345045087,-692.78255534,0.00017622,2]
[404624453,1770345045099,-129.93112731,0.00017622,2]
[404624454,1770345045228,-100.11379823,0.00017622,2]
[404624455,1770345045238,-449.524518,0.00017807,2]
[404624456,1770345045248,-463.23333799,0.00017861,4]
[404624457,1770345045257,-455.87024153,0.00018032,2]
[404624458,1770345045267,-253.05003695,0.00018039,2]
[404624459,1770345045276,-295.60685983,0.00018039,2]
[404624460,1770345045286,-525.52330636,0.00018039,2]
[404624461,1770345045295,-351.364,0.00018183,2]
[404624462,1770345045304,-155.06,0.00018274,2]
[404624463,1770345045314,-281.8505607,0.0001841,2]
[404624464,1770345045323,-250.0,0.00018536,2]
[404624465,1770345045332,-250.0,0.00018536,2]
[404624466,1770345045341,-250.0,0.00018536,2]
[404624467,1770345045355,-250.0,0.00018536,2]
[404624468,1770345045365,-250.0,0.00018536,2]
[404624469,1770345045374,-250.0,0.00018536,2]
[404624470,1770345045383,-250.0,0.00018536,2]
[404624471,1770345045392,-250.0,0.00018536,2]
[404624472,1770345045401,-250.0,0.00018536,2]
[404624473,1770345045410,-209.40437684,0.00018536,2]
[404624474,1770345045420,-250.0,0.00018536,2]
[404624475,1770345045429,-250.0,0.00018536,2]
[404624476,1770345045438,-217.15233878,0.00018536,2]
[404624477,1770345045447,-1000.0,0.00018536,2]
[404624478,1770345045456,-250.0,0.00018536,2]
[404624479,1770345045466,-250.0,0.00018536,2]
[404624480,1770345045475,-167.93651879,0.00018536,2]
[404624495,1770345081575,-325.73989595,0.00017442,2]
[404624496,1770345081591,-571.05127253,0.00017442,2]
[404624497,1770345081600,-325.73989595,0.00017442,2]
[404624513,1770345483652,212.16,9.99e-05,2]
[404624520,1770345619302,25870.84497357,0.00030136,120]
[404624891,1770346232099,-1598.53113234,0.00015801,2]
[404624893,1770346232111,-3401.46886766,0.00015801,2]
[404624895,1770346232122,-228.44226801,0.00015961,2]
[404624897,1770346232132,-300.0,0.00016242,2]
[404624899,1770346232141,-670.2050892,0.00016283,2]
[404624901,1770346232153,-203.43553997,0.00016489,2]
[404624903,1770346232163,-198.53739,0.00017006,2]
[404624904,1770346232172,-300.0,0.0001779,2]
[404624906,1770346232181,-300.0,0.0001779,2]
[404624908,1770346232190,-300.0,0.0001779,2]
[404624909,1770346232200,-300.0,0.0001779,2]
[404624910,1770346232210,-300.0,0.0001779,2]
[404624911,1770346232220,-300.0,0.0001779,2]
[404624912,1770346232229,-300.0,0.0001779,2]
[404624913,1770346232239,-300.0,0.0001779,2]
[404624914,1770346232249,-300.0,0.0001779,2]
[404624915,1770346232259,-300.0,0.0001779,2]
[404624916,1770346232268,-300.0,0.0001779,2]
[404624917,1770346232278,-300.0,0.0001779,2]
[404624918,1770346232287,-300.0,0.0001779,2]
[404624919,1770346232296,-300.0,0.0001779,2]
[404624920,1770346232311,-300.0,0.0001779,2]
[404624921,1770346232320,-600.0,0.0001779,2]
[404624922,1770346232329,-500.0,0.00017831,2]
[404624923,1770346232339,-500.0,0.00017831,2]
[404624925,1770346232348,-370.57340714,0.00017831,2]
[404624927,1770346232358,-129.35791103,0.00017831,2]
[404624929,1770346232371,-276.36,0.00017831,2]
[404624930,1770346232389,-94.28208897,0.00017831,2]
[404624931,1770346232398,-255.0,0.00017831,2]
[404624932,1770346232407,-662.55324238,0.00017831,2]
[404625431,1770346531389,10000.0,0.0001505,2]
[404625443,1770346864087,500.0,0.00013699,2]
[404625444,1770346864199,605.95021461,0.00013273,2]
[404625445,1770346864521,635.5747756,0.00013699,2]
[404625446,1770346884587,-5000.0,0.00016484,2]
[404625581,1770347444834,-1567.31444388,0.00016238,2]
[404625583,1770347445678,-3432.68555612,0.00016238,2]
[404625584,1770347445687,-223.87342265,0.00016445,2]
[404625585,1770347445697,-16463.87106308,0.00016652,2]
[404625596,1770347446646,-225.61579323,0.00016652,2]
[404625597,1770347446656,-1000.0,0.0001682,2]
[404625598,1770347446665,-199.83912533,0.0001689,2]
[404625599,1770347446674,-305.347163,0.0001691,2]
[404625600,1770347446684,-1930.8826684,0.00017157,2]
[404625601,1770347446693,-300.0,0.00017233,2]
[404625602,1770347446703,-300.0,0.00017233,2]
[404625603,1770347446712,-246.4041038,0.00017233,2]
[404625717,1770347712823,-2000.0,0.00017055,2]
[404625820,1770348073468,-187.9987139,0.00016039,2]
[404625852,1770348628578,-5000.0,0.00015915,2]
[404625942,1770348640743,-3e-08,0.00015915,2]
[404625943,1770348640819,-498.33034988,0.00015915,2]
[404625950,1770348644922,-3929.36667358,0.00015756,2]
[404625962,1770348646782,-1070.63332642,0.00015756,2]
[404625963,1770348646794,-3581.62005726,0.00015915,2]
[404625964,1770348646804,-300.0,0.00016076,2]
[404625965,1770348646814,-16479.04973734,0.00016087,2]
[404625966,1770348646824,-223.15592848,0.0001612,2]
[404625967,1770348646835,-158.829912,0.00016283,2]
[404625968,1770348646845,-509.37305998,0.00016287,2]
[404625969,1770348646855,-180.10966085,0.00016755,2]
[404625970,1770348646865,-500.0,0.00016755,2]
[404625971,1770348646875,-500.0,0.00016755,2]
[404625972,1770348646885,-620.63133222,0.00016755,2]
[404625973,1770348646895,-500.0,0.00016755,2]
[404625974,1770348646904,-500.0,0.00016755,2]
[404625976,1770348646913,-500.0,0.00016755,2]
[404625978,1770348646923,-565.5,0.00016755,2]
[404625980,1770348646933,-4740.11617779,0.00016756,2]
[404625981,1770348646955,-565.64032048,0.00016756,2]
[404625994,1770348662790,-312.00565817,0.00016588,2]
[404625995,1770348662961,-1065.13304051,0.00016756,2]
[404625996,1770348691805,-312.00565817,0.00016756,2]
[404626041,1770349083314,6000.0,0.0001505,2]
[404626047,1770349182441,2809.0,0.00030137,120]
[404626054,1770349313834,1837.8842528,0.0001505,2]
[404626055,1770349329850,153.15071427,0.00014622,2]
[404626070,1770349550634,306.6,0.0001505,2]
[404626074,1770349631436,263.0541183,0.00014783,4]
[404626080,1770349731524,10000.0,0.00030137,120]
[404626084,1770349749162,10000.0,0.00030137,120]
[404626085,1770349767202,1800.0,0.00030137,120]
[404626115,1770349831781,-222.23280991,0.00015437,2]
[404626117,1770349831791,-1000.0,0.0001571,2]
[404626120,1770349831801,-199.02795969,0.00015871,2]
[404626147,1770349837661,-51.63978611,0.00015871,2]
[404626148,1770349837672,-305.3471639,0.00015983,2]
[404626149,1770349837681,-8084.75325072,0.00016646,2]
[404626150,1770349837691,-5000.0,0.000167,2]
[404626151,1770349837702,-151.0,0.000167,2]
[404626152,1770349837713,-14231.87985763,0.000167,2]
[404626153,1770349837729,-1679.79622631,0.000167,2]
[404626154,1770349837739,-151.0,0.00016746,2]
[404626155,1770349837749,-1639.22046539,0.00016746,3]
[404626156,1770349837760,-2175.46953461,0.00016746,3]
[404626157,1770349837770,-1907.34,0.00016746,3]
[404626159,1770349837779,-953.67,0.00016746,3]
[404626160,1770349837789,-476.84,0.00016746,3]
[404626161,1770349837798,-238.42,0.00016746,3]
[404626162,1770349837807,-715.27,0.00016746,3]
[404626163,1770349837817,-500.0,0.00016746,2]
[404626164,1770349837827,-553.93710972,0.00016746,2]
[404626165,1770349837836,-229.5,0.00016746,2]
[404626166,1770349837846,-500.0,0.00016746,2]
[404626167,1770349837855,-941.00421469,0.00016746,2]
[404626168,1770349837864,-500.0,0.00016746,2]
[404626169,1770349837874,-500.0,0.00016746,2]
[404626170,1770349837883,-941.00421469,0.00016746,2]
[404626171,1770349837893,-180.07014802,0.00016746,2]
[404626172,1770349837903,-500.0,0.00016746,2]
[404626173,1770349837912,-500.0,0.00016746,2]
[404626174,1770349837922,-941.00421469,0.00016746,2]
[404626175,1770349837932,-500.0,0.00016746,2]
[404626176,1770349837942,-500.0,0.00016746,2]
[404626177,1770349837951,-941.00421469,0.00016746,2]
[404626178,1770349837960,-500.0,0.00016746,2]
[404626179,1770349837969,-500.0,0.00016746,2]
[404626180,1770349837979,-500.0,0.00016746,2]
[404626181,1770349837989,-500.0,0.00016746,2]
[404626182,1770349837999,-941.00421469,0.00016746,2]
[404626183,1770349838009,-500.0,0.00016746,2]
[404626184,1770349838018,-941.00421469,0.00016746,2]
[404626185,1770349838028,-941.00421469,0.00016746,2]
[404626186,1770349838037,-500.0,0.00016746,2]
[404626187,1770349838047,-500.0,0.00016746,2]
[404626188,1770349838056,-941.00421469,0.00016746,2]
[404626189,1770349838066,-313.19780314,0.00016746,2]
[404626190,1770349838075,-500.0,0.00016746,2]
[404626191,1770349838085,-941.00421469,0.00016746,2]
[404626192,1770349838094,-941.00421469,0.00016746,2]
[404626193,1770349838104,-500.0,0.00016746,2]
[404626194,1770349838114,-591.38497254,0.00016746,2]
[404626195,1770349838123,-941.00421469,0.00016746,2]
[404626196,1770349838132,-941.00421469,0.00016746,2]
[404626197,1770349838142,-500.0,0.00016746,2]
[404626198,1770349838152,-500.0,0.00016746,2]
[404626199,1770349838165,-941.00421469,0.00016746,2]
[404626200,1770349838174,-941.00421469,0.00016746,2]
[404626201,1770349838184,-941.00421469,0.00016746,2]
[404626202,1770349838193,-941.00421469,0.00016746,2]
[404626203,1770349838204,-941.00421469,0.00016746,2]
[404626204,1770349838214,-941.00421469,0.00016746,2]
[404626205,1770349838224,-941.00421469,0.00016746,2]
[404626206,1770349838235,-941.00421469,0.00016746,2]
[404626207,1770349838248,-941.00421469,0.00016746,2]
[404626208,1770349838257,-941.00421469,0.00016746,2]
[404626209,1770349838267,-941.00421469,0.00016746,2]
[404626210,1770349838276,-941.00421469,0.00016746,2]
[404626211,1770349838286,-941.00421469,0.00016746,2]
[404626212,1770349838295,-941.00421469,0.00016746,2]
[404626213,1770349838305,-941.00421469,0.00016746,2]
[404626214,1770349838314,-941.00421468,0.00016746,2]
[404626215,1770349838323,-941.00421469,0.00016746,2]
[404626216,1770349838333,-941.00421469,0.00016746,2]
[404626217,1770349838342,-941.00421469,0.00016746,2]
[404626218,1770349838352,-941.00421469,0.00016746,2]
[404626219,1770349838362,-941.00421469,0.00016746,2]
[404626220,1770349838371,-941.00421469,0.00016746,2]
[404626221,1770349838381,-941.00421469,0.00016746,2]
[404626222,1770349838390,-941.00421469,0.00016746,2]
[404626223,1770349838399,-941.00421469,0.00016746,2]
[404626224,1770349838409,-941.00421469,0.00016746,2]
[404626225,1770349838419,-941.00421469,0.00016746,2]
[404626226,1770349838428,-941.00421469,0.00016746,2]
[404626227,1770349838437,-941.00421469,0.00016746,2]
[404626228,1770349838447,-941.00421469,0.00016746,2]
[404626229,1770349838456,-941.00421469,0.00016746,2]
[404626230,1770349838466,-941.00421469,0.00016746,2]
[404626231,1770349838475,-941.00421469,0.00016746,2]
[404626232,1770349838484,-941.00421469,0.00016746,2]
[404626233,1770349838496,-941.00421469,0.00016746,2]
[404626234,1770349838506,-941.00421469,0.00016746,2]
[404626235,1770349838514,-941.00421469,0.00016746,2]
[404626236,1770349838524,-941.00421469,0.00016746,2]
[404626237,1770349838533,-941.00421469,0.00016746,2]
[404626238,1770349838542,-941.00421469,0.00016746,2]
[404626239,1770349838551,-941.00421469,0.00016746,2]
[404626240,1770349838559,-941.00421469,0.00016746,2]
[404626241,1770349838568,-941.00421469,0.00016746,2]
[404626242,1770349838577,-941.00421469,0.00016746,2]
[404626243,1770349838586,-941.00421469,0.00016746,2]
[404626244,1770349838596,-941.00421469,0.00016746,2]
[404626245,1770349838604,-941.00421469,0.00016746,2]
[404626246,1770349838613,-941.00421469,0.00016746,2]
[404626247,1770349838622,-941.00421469,0.00016746,2]
[404626248,1770349838631,-941.00421469,0.00016746,2]
[404626249,1770349838640,-941.00421469,0.00016746,2]
[404626250,1770349838649,-941.00421469,0.00016746,2]
[404626251,1770349838658,-941.00421469,0.00016746,2]
[404626252,1770349838667,-941.00421469,0.00016746,2]
[404626253,1770349838675,-941.00421469,0.00016746,2]
[404626254,1770349838685,-941.00421469,0.00016746,2]
[404626255,1770349838694,-941.00421469,0.00016746,2]
[404626256,1770349838704,-941.00421469,0.00016746,2]
[404626257,1770349838714,-391.07160146,0.00016746,2]
[404626258,1770349838723,-1584.69629591,0.00016746,2]
[404626259,1770349838732,-1584.69629591,0.00016746,2]
[404626260,1770349838743,-1584.69629591,0.00016746,2]
[404626261,1770349838752,-1584.69629591,0.00016746,2]
[404626262,1770349838762,-1584.69629591,0.00016746,2]
[404626263,1770349838771,-1584.69629591,0.00016746,2]
[404626264,1770349838781,-1584.69629591,0.00016746,2]
[404626265,1770349838791,-1584.69629591,0.00016746,2]
[404626266,1770349838800,-1584.69629591,0.00016746,2]
[404626267,1770349838810,-1584.69629591,0.00016746,2]
[404626268,1770349838819,-1584.69629591,0.00016746,2]
[404626269,1770349838829,-1584.69629591,0.00016746,2]
[404626270,1770349838838,-1584.69629591,0.00016746,2]
[404626271,1770349838848,-1584.69629591,0.00016746,2]
[404626272,1770349838857,-1584.69629591,0.00016746,2]
[404626273,1770349838866,-1584.69629591,0.00016746,2]
[404626274,1770349838876,-1584.69629591,0.00016746,2]
[404626275,1770349838885,-1584.69629591,0.00016746,2]
[404626276,1770349838895,-1584.69629591,0.00016746,2]
[404626277,1770349838905,-151.0,0.00016748,2]
[404626278,1770349838914,-153.984886,0.00016748,2]
[404626279,1770349838924,-166.0,0.00016756,2]
[404626280,1770349838933,-151.0,0.00016756,2]
[404626281,1770349838943,-349.0,0.00016756,2]
[404626282,1770349838952,-151.0,0.00016756,2]
[404626283,1770349838961,-166.0,0.00016756,2]
[404626284,1770349838971,-349.0,0.00016756,2]
[404626285,1770349838981,-151.0,0.00016756,2]
[404626286,1770349838993,-166.0,0.00016756,2]
[404626287,1770349839002,-349.0,0.00016756,2]
[404626288,1770349839012,-151.0,0.00016756,2]
[404626289,1770349839021,-166.0,0.00016756,2]
[404626290,1770349839031,-349.0,0.00016756,2]
[404626291,1770349839040,-151.0,0.00016756,2]